[Event "Czech Youth U16 Girls 2024"]
[Site "Kouty nad Desnou"]
[Date "2024.03.12"]
[Round "5.4"]
[White "Sikorova, Jana"]
[Black "Kavanova, Anezka"]
[Result "1/2-1/2"]
[ECO "D32"]
[WhiteElo "1788"]
[BlackElo "1661"]
[Annotator "NA RC"]
[PlyCount "77"]
[EventDate "2024.03.10"]
[EventType "swiss"]
[EventCountry "CZE"]
[SourceTitle "playchess.com"]
[Source "ChessBase"]
[SourceQuality "1"]
[TimeControl "40/5400+30:1800+30"]

1. d4 {[%emt 0:00:04]} d5 {[%emt 0:00:05]} 2. c4 {[%emt 0:00:16]} e6 {[%emt 0:00:04]} 3. Nf3 {[%emt 0:00:09]} c5 {[%emt 0:00:05]} 4. cxd5 {[%emt 0:00:44]} exd5 {[%emt 0:00:05]} 5. Nc3 {[%emt 0:01:12]} Nc6 {[%emt 0:00:06]} 6. e3 {[%emt 0:02:59]} Nf6 {[%emt 0:01:22]} 7. Be2 {[%emt 0:02:40]} Be7 {[%emt 0:00:43]} 8. O-O {[%emt 0:00:56]} O-O {[%emt 0:00:31]} 9. dxc5 {[%emt 0:03:12]} Bxc5 {[%emt 0:00:10]} 10. Nb5 {[%emt 0:00:45]} Bf5 {[%emt 0:03:15]} 11. b3 {[%emt 0:03:13]} a6 {[%emt 0:02:17]} 12. Nbd4 {[%emt 0:02:07]} Be4 {[%emt 0:00:09]} 13. Bb2 {[%emt 0:03:04]} Rc8 {[%emt 0:03:56]} 14. Rc1 {[%emt 0:02:23]} Ba7 {[%emt 0:18:46]} 15. Nxc6 {[%emt 0:05:55]} Rxc6 {[%emt 0:01:57]} 16. Qd2 {[%emt 0:08:34]} Rxc1 {[%emt 0:00:20]} 17. Rxc1 {[%emt 0:00:40]} Qe7 {[%emt 0:01:28]} 18. Bd4 {[%emt 0:06:46]} Bxd4 {[%emt 0:04:40]} 19. Qxd4 {[%emt 0:02:46]} Qa3 {[%emt 0:09:39]} 20. Qd2 {[%emt 0:01:12]} h6 {[%emt 0:02:51]} 21. h3 {[%emt 0:01:14]} Rd8 {[%emt 0:06:20]} 22. Nd4 {[%emt 0:02:40]} Bg6 {[%emt 0:03:53]} 23. Rc7 {[%emt 0:09:13]} Rd7 {[%emt 0:01:47]} 24. Rxd7 {[%emt 0:02:56]} Nxd7 {[%emt 0:00:06]} 25. Qc3 {[%emt 0:01:41]} Qc5 {[%emt 0:02:49]} 26. Qxc5 {[%emt 0:02:35]} Nxc5 {[%emt 0:00:06]} 27. Kf1 {[%emt 0:04:44]} Kf8 {[%emt 0:00:57]} 28. Bg4 {[%emt 0:01:36]} Ke8 {[%emt 0:16:12]} 29. Ke2 {[%emt 0:01:16]} h5 {[%emt 0:02:29]} 30. Bf5 {[%emt 0:03:01]} Bxf5 {[%emt 0:01:04]} 31. Nxf5 {[%emt 0:00:07]} g6 {[%emt 0:00:03]} 32. Nd4 {[%emt 0:01:22]} Kd7 {[%emt 0:01:10]} 33. f3 {[%emt 0:02:28]} Kd6 {[%emt 0:02:11]} 34. Kd2 {[%emt 0:03:03]} Ne6 {[%emt 0:02:46]} 35. Kc3 {[%emt 0:01:58]} Kc5 {[%emt 0:00:54]} 36. b4+ {[%emt 0:02:08]} Kd6 {[%emt 0:00:14]} 37. f4 {[%emt 0:01:46]} Nxd4 {[%emt 0:06:32]} 38. Kxd4 {[%emt 0:00:24]} h4 {[%emt 0:02:37]} 39. a3 {[%emt 0:03:50]} 1/2-1/2

[Event "Czech Youth U16 Girls 2024"]
[Site "Kouty nad Desnou"]
[Date "2024.03.12"]
[Round "5.5"]
[White "Dudkova, Josefina"]
[Black "Kaplanova, Dominika"]
[Result "1/2-1/2"]
[ECO "D04"]
[WhiteElo "1796"]
[BlackElo "1837"]
[Annotator "NA RC"]
[PlyCount "52"]
[EventDate "2024.03.10"]
[EventType "swiss"]
[EventCountry "CZE"]
[SourceTitle "playchess.com"]
[Source "ChessBase"]
[SourceQuality "1"]
[TimeControl "40/5400+30:1800+30"]

1. Nf3 {[%emt 0:00:15]} Nf6 {[%emt 0:00:22]} 2. d4 {[%emt 0:00:08]} d5 {[%emt 0:00:17]} 3. e3 {[%emt 0:00:16]} Bf5 {[%emt 0:00:41]} 4. b3 {[%emt 0:02:25]} e6 {[%emt 0:01:44]} 5. Bb2 {[%emt 0:03:13]} Bd6 {[%emt 0:03:34]} 6. c4 {[%emt 0:04:28] D04: Damenbauernspiele.} c6 {[%emt 0:05:03]} 7. Nbd2 {[%emt 0:07:16]} Ne4 {[%emt 0:07:09]} 8. Nxe4 {[%emt 0:07:21]} Bxe4 {[%emt 0:04:12]} 9. c5 {[%emt 0:03:43]} Bc7 {[%emt 0:02:18]} 10. b4 {[%emt 0:00:22]} O-O {[%emt 0:03:15]} 11. Bd3 {[%emt 0:02:15]} Bg6 {[%emt 0:06:41]} 12. O-O {[%emt 0:03:24]} b6 {[%emt 0:03:07]} 13. a4 {[%emt 0:02:08]} a5 {[%emt 0:03:19]} 14. b5 {[%emt 0:02:00]} cxb5 {[%emt 0:18:32]} 15. axb5 {[%emt 0:02:33]} Nd7 {[%emt 0:03:49]} 16. Bxg6 {[%emt 0:07:35]} fxg6 {[%emt 0:01:34]} 17. Qc2 {[%emt 0:01:17]} Rxf3 {[%emt 0:22:31]} 18. gxf3 {[%emt 0:05:29]} Bxh2+ {[%emt 0:01:40]} 19. Kxh2 $11 {[%emt 0:02:14]} Qh4+ {[%emt 0:00:24]} 20. Kg2 {[%emt 0:00:26]} Qg5+ {[%emt 0:01:02]} 21. Kh2 {[%emt 0:01:17]} Qh5+ {[%emt 0:01:41]} 22. Kg2 {[%emt 0:00:39]} Qg5+ {[%emt 0:00:07]} 23. Kh2 {[%emt 0:00:37]} Qh5+ {[%emt 0:01:46]} 24. Kg2 {[%emt 0:00:09]} Qg5+ {[%emt 0:00:21]} 25. Kh2 {[%emt 0:00:15]} Qh4+ {[%emt 0:01:35]} 26. Kg2 {[%emt 0:00:20]} Qg5+ {[%emt 0:00:27]} 1/2-1/2

[Event "Czech Youth U16 Girls 2024"]
[Site "Kouty nad Desnou"]
[Date "2024.03.12"]
[Round "5.6"]
[White "Lackova, Ludmila"]
[Black "Vacekova, Anita"]
[Result "1-0"]
[ECO "D85"]
[WhiteElo "1652"]
[BlackElo "1783"]
[Annotator "NA RC"]
[PlyCount "73"]
[EventDate "2024.03.10"]
[EventType "swiss"]
[EventCountry "CZE"]
[SourceTitle "playchess.com"]
[Source "ChessBase"]
[SourceQuality "1"]
[TimeControl "40/5400+30:1800+30"]

1. d4 {[%emt 0:00:04]} Nf6 {[%emt 0:00:18]} 2. c4 {[%emt 0:00:13]} g6 {[%emt 0:00:09]} 3. Nc3 {[%emt 0:00:09]} d5 {[%emt 0:00:18]} 4. cxd5 {[%emt 0:00:23]} Nxd5 {[%emt 0:00:08]} 5. e4 {[%emt 0:00:10]} Nxc3 {[%emt 0:00:11]} 6. bxc3 {[%emt 0:00:06]} Bg7 {[%emt 0:00:07]} 7. Be3 {[%emt 0:01:07]} c5 {[%emt 0:00:27]} 8. Bb5+ {[%emt 0:02:42]} Bd7 {[%emt 0:06:15]} 9. Bxd7+ {[%emt 0:01:28]} Nxd7 {[%emt 0:01:29]} 10. Ne2 {[%emt 0:03:04]} O-O {[%emt 0:02:38]} 11. O-O {[%emt 0:00:20]} cxd4 {[%emt 0:18:53]} 12. cxd4 {[%emt 0:00:51]} Nb6 {[%emt 0:00:59]} 13. Rc1 {[%emt 0:00:58]} Rc8 {[%emt 0:04:14]} 14. Qb3 {[%emt 0:01:28]} e6 {[%emt 0:06:48]} 15. Rxc8 {[%emt 0:03:54]} Qxc8 {[%emt 0:00:43]} 16. Rc1 {[%emt 0:00:21]} Qd7 {[%emt 0:01:51]} 17. Rc5 {[%emt 0:12:11]} Nc8 {[%emt 0:04:58]} 18. d5 {[%emt 0:20:59]} Rd8 {[%emt 0:03:40]} 19. f3 {[%emt 0:03:44]} b6 {[%emt 0:07:45]} 20. Rc2 {[%emt 0:04:53]} exd5 {[%emt 0:03:03]} 21. exd5 {[%emt 0:01:30]} Ne7 {[%emt 0:04:41]} 22. Rd2 {[%emt 0:01:57]} Nf5 {[%emt 0:01:47]} 23. Bf2 {[%emt 0:01:42]} Qb7 {[%emt 0:06:27]} 24. Ng3 {[%emt 0:03:34]} Ne7 {[%emt 0:04:17]} 25. d6 {[%emt 0:01:19]} Nc8 {[%emt 0:01:04]} 26. Ne4 {[%emt 0:00:59]} Be5 {[%emt 0:06:04]} 27. Bg3 {[%emt 0:02:24]} Bxg3 {[%emt 0:01:19]} 28. hxg3 {[%emt 0:00:18]} b5 {[%emt 0:00:35]} 29. Nf6+ {[%emt 0:08:27]} Kf8 {[%emt 0:03:42]} 30. Nxh7+ {[%emt 0:20:56]} Kg7 {[%emt 0:00:22]} 31. Ng5 {[%emt 0:01:18]} Rxd6 {[%emt 0:01:32]} 32. Rxd6 {[%emt 0:00:29]} Nxd6 {[%emt 0:00:12]} 33. Qc3+ {[%emt 0:00:51]} f6 {[%emt 0:00:49]} 34. Ne6+ {[%emt 0:00:27]} Kh7 {[%emt 0:06:27]} 35. Qxf6 {[%emt 0:00:21]} Ne8 {[%emt 0:01:48]} 36. Ng5+ {[%emt 0:01:01]} Kh6 {[%emt 0:00:50]} 37. Nf7+ {[%emt 0:00:26]} 1-0

[Event "Czech Youth U16 Girls 2024"]
[Site "Kouty nad Desnou"]
[Date "2024.03.12"]
[Round "5.7"]
[White "Dlaskova, Eliska"]
[Black "Hetfleischova, Elen"]
[Result "1-0"]
[ECO "B22"]
[WhiteElo "1526"]
[BlackElo "1699"]
[Annotator "NA RC"]
[PlyCount "61"]
[EventDate "2024.03.10"]
[EventType "swiss"]
[EventCountry "CZE"]
[SourceTitle "playchess.com"]
[Source "ChessBase"]
[SourceQuality "1"]
[TimeControl "40/5400+30:1800+30"]

1. e4 {[%emt 0:00:03]} c5 {[%emt 0:00:10]} 2. c3 {[%emt 0:00:17]} Nc6 {[%emt 0:00:19]} 3. d4 {[%emt 0:00:12]} cxd4 {[%emt 0:00:47]} 4. cxd4 {[%emt 0:00:16]} Nf6 {[%emt 0:01:03]} 5. d5 {[%emt 0:02:04]} Ne5 {[%emt 0:05:39]} 6. f4 {[%emt 0:01:57]} Ng6 {[%emt 0:01:19]} 7. e5 {[%emt 0:01:19]} Ng8 {[%emt 0:01:05]} 8. Nf3 {[%emt 0:05:19]} e6 {[%emt 0:01:25]} 9. d6 {[%emt 0:01:08]} f6 {[%emt 0:02:15]} 10. Nc3 {[%emt 0:01:38]} a6 {[%emt 0:01:00]} 11. Be3 {[%emt 0:02:42]} b5 {[%emt 0:01:00]} 12. a4 {[%emt 0:01:44]} b4 {[%emt 0:01:18]} 13. a5 {[%emt 0:00:41]} Bb7 {[%emt 0:06:14]} 14. Bb6 {[%emt 0:03:11]} Qb8 {[%emt 0:03:54]} 15. Na2 {[%emt 0:06:05]} Bxf3 {[%emt 0:00:46]} 16. Qxf3 {[%emt 0:02:32]} fxe5 {[%emt 0:00:49]} 17. Bc7 {[%emt 0:04:05]} Qa7 {[%emt 0:04:51]} 18. Nxb4 {[%emt 0:02:37]} exf4 {[%emt 0:01:58]} 19. Bb6 {[%emt 0:00:54]} Qb8 {[%emt 0:01:05]} 20. Nxa6 {[%emt 0:01:14]} Rxa6 {[%emt 0:01:01]} 21. Bxa6 {[%emt 0:00:22]} Bxd6 {[%emt 0:00:54]} 22. Qb7 {[%emt 0:02:23]} N8e7 {[%emt 0:03:54]} 23. Qxb8+ {[%emt 0:00:31]} Bxb8 {[%emt 0:00:27]} 24. Bb7 {[%emt 0:01:02]} O-O {[%emt 0:01:19]} 25. O-O {[%emt 0:00:48]} d5 {[%emt 0:00:23]} 26. Bc5 {[%emt 0:00:46]} e5 {[%emt 0:00:39]} 27. a6 {[%emt 0:08:50]} e4 {[%emt 0:00:28]} 28. a7 {[%emt 0:00:51]} Bxa7 {[%emt 0:00:09]} 29. Rxa7 {[%emt 0:01:52]} e3 {[%emt 0:00:15]} 30. Ra8 Rxa8 31. Bxa8 1-0

[Event "Czech Youth U16 Girls 2024"]
[Site "Kouty nad Desnou"]
[Date "2024.03.12"]
[Round "5.8"]
[White "Zelenkova, Sofie"]
[Black "Holatova, Irena"]
[Result "0-1"]
[ECO "A06"]
[WhiteElo "1636"]
[BlackElo "1608"]
[Annotator "NA RC"]
[PlyCount "74"]
[EventDate "2024.03.10"]
[EventType "swiss"]
[EventCountry "CZE"]
[SourceTitle "playchess.com"]
[Source "ChessBase"]
[SourceQuality "1"]
[TimeControl "40/5400+30:1800+30"]

1. Nf3 {[%emt 0:00:01]} d5 {[%emt 0:00:05]} 2. d4 {[%emt 0:00:04]} e6 {[%emt 0:00:47]} 3. g3 {[%emt 0:00:16]} Nf6 {[%emt 0:00:36]} 4. Bg2 {[%emt 0:00:10]} c5 {[%emt 0:00:35]} 5. c3 {[%emt 0:00:33]} Be7 {[%emt 0:01:23]} 6. O-O {[%emt 0:00:08]} O-O {[%emt 0:00:33]} 7. Na3 {[%emt 0:00:50]} Nc6 {[%emt 0:01:18]} 8. Nc2 {[%emt 0:01:32]} b6 {[%emt 0:01:33]} 9. b3 {[%emt 0:03:03]} Ba6 {[%emt 0:03:28]} 10. Re1 {[%emt 0:00:41]} Ne4 {[%emt 0:04:44]} 11. Bb2 {[%emt 0:01:54]} Qc7 {[%emt 0:06:49]} 12. Nd2 {[%emt 0:02:20]} f5 {[%emt 0:02:48]} 13. Nxe4 {[%emt 0:02:26]} fxe4 {[%emt 0:01:21]} 14. Ne3 {[%emt 0:03:11]} Rad8 {[%emt 0:02:28]} 15. Qc2 {[%emt 0:01:29]} Bd6 {[%emt 0:03:36]} 16. Rad1 {[%emt 0:09:09]} Qf7 {[%emt 0:02:46]} 17. Rf1 {[%emt 0:07:43]} Qh5 {[%emt 0:02:32]} 18. Rd2 {[%emt 0:04:09]} Rf6 {[%emt 0:02:53]} 19. h3 {[%emt 0:11:47]} Rdf8 {[%emt 0:04:54]} 20. Qd1 {[%emt 0:13:40]} Qf7 {[%emt 0:12:41]} 21. Ng4 {[%emt 0:10:26]} Rf5 {[%emt 0:03:46]} 22. f3 {[%emt 0:02:23]} Bxg3 {[%emt 0:02:10]} 23. fxe4 {[%emt 0:01:36]} dxe4 {[%emt 0:01:48]} 24. Rxf5 {[%emt 0:04:55]} Qxf5 {[%emt 0:01:03]} 25. Qf1 {[%emt 0:01:48]} Qxf1+ {[%emt 0:01:43]} 26. Bxf1 {[%emt 0:00:04]} h5 {[%emt 0:02:44]} 27. Ne5 {[%emt 0:03:27]} e3 {[%emt 0:01:41]} 28. Rd1 {[%emt 0:01:44]} Nxe5 {[%emt 0:00:45]} 29. dxe5 {[%emt 0:00:07]} Rf2 {[%emt 0:01:14]} 30. Bg2 {[%emt 0:12:02]} Rxe2 {[%emt 0:02:41]} 31. Bc1 {[%emt 0:01:06]} Bxe5 {[%emt 0:02:46]} 32. Bf3 {[%emt 0:00:50]} Rxa2 {[%emt 0:02:28]} 33. Rd8+ {[%emt 0:00:20]} Kf7 {[%emt 0:01:26]} 34. Bxh5+ {[%emt 0:00:09]} Ke7 {[%emt 0:00:42]} 35. Re8+ {[%emt 0:01:15]} Kd7 {[%emt 0:01:22]} 36. Bxe3 {[%emt 0:00:22]} Bxc3 {[%emt 0:01:41]} 37. Bg5 {[%emt 0:00:44]} Bd4+ {[%emt 0:00:24]} 0-1

[Event "Czech Youth U16 Girls 2024"]
[Site "Kouty nad Desnou"]
[Date "2024.03.12"]
[Round "5.10"]
[White "Janouskova, Adela"]
[Black "Archlebova, Stela"]
[Result "0-1"]
[ECO "C45"]
[WhiteElo "1684"]
[BlackElo "1600"]
[Annotator "NA RC"]
[PlyCount "44"]
[EventDate "2024.03.10"]
[EventType "swiss"]
[EventCountry "CZE"]
[SourceTitle "playchess.com"]
[Source "ChessBase"]
[SourceQuality "1"]
[TimeControl "40/5400+30:1800+30"]

1. e4 {[%emt 0:00:07]} e5 {[%emt 0:00:08]} 2. Nf3 {[%emt 0:00:09]} Nc6 {[%emt 0:00:06]} 3. d4 {[%emt 0:00:14]} exd4 {[%emt 0:00:36]} 4. Nxd4 {[%emt 0:00:11]} Bc5 {[%emt 0:00:11]} 5. Nb3 {[%emt 0:00:13]} Bb6 {[%emt 0:01:37]} 6. Nc3 {[%emt 0:00:18]} d6 {[%emt 0:00:48]} 7. Bd3 {[%emt 0:02:52]} Nf6 {[%emt 0:03:22]} 8. Bg5 {[%emt 0:03:14]} h6 {[%emt 0:01:17]} 9. Bh4 {[%emt 0:00:47]} Be6 {[%emt 0:02:14]} 10. O-O {[%emt 0:08:27]} g5 {[%emt 0:04:00]} 11. Bg3 {[%emt 0:00:59]} h5 {[%emt 0:02:20]} 12. h4 {[%emt 0:05:41]} Ng4 {[%emt 0:04:44]} 13. hxg5 {[%emt 0:07:18]} Qxg5 {[%emt 0:00:18]} 14. Qd2 {[%emt 0:04:07]} Qg7 {[%emt 0:00:28]} 15. Bh4 {[%emt 0:05:45]} Rg8 {[%emt 0:03:42]} 16. g3 {[%emt 0:02:17]} Nge5 {[%emt 0:07:56]} 17. Be2 {[%emt 0:05:45]} Bxb3 {[%emt 0:14:39]} 18. axb3 {[%emt 0:00:31]} Nd4 {[%emt 0:00:19]} 19. Qd1 {[%emt 0:09:51]} Nxe2+ {[%emt 0:01:44]} 20. Qxe2 {[%emt 0:00:19]} c6 {[%emt 0:04:09]} 21. Rad1 {[%emt 0:17:00]} Rd8 {[%emt 0:00:57]} 22. Bxd8 {[%emt 0:05:25]} Qxg3+ {[%emt 0:00:45]} 0-1

[Event "Czech Youth U16 Girls 2024"]
[Site "Kouty nad Desnou"]
[Date "2024.03.12"]
[Round "5.11"]
[White "Souralova, Jana"]
[Black "Stavova, Marketa"]
[Result "1/2-1/2"]
[ECO "C42"]
[WhiteElo "1597"]
[BlackElo "1641"]
[Annotator "NA RC"]
[PlyCount "61"]
[EventDate "2024.03.10"]
[EventType "swiss"]
[EventCountry "CZE"]
[SourceTitle "playchess.com"]
[Source "ChessBase"]
[SourceQuality "1"]
[TimeControl "40/5400+30:1800+30"]

1. e4 {[%emt 0:00:03]} e5 {[%emt 0:00:14]} 2. Nf3 {[%emt 0:00:10]} Nf6 {[%emt 0:00:32]} 3. Nc3 {[%emt 0:00:35]} Bb4 {[%emt 0:00:37]} 4. Bc4 {[%emt 0:09:09]} O-O {[%emt 0:03:26]} 5. d3 {[%emt 0:02:48]} d6 {[%emt 0:01:20]} 6. O-O {[%emt 0:02:15]} c6 {[%emt 0:03:02]} 7. Bg5 {[%emt 0:01:54]} h6 {[%emt 0:01:04]} 8. Bh4 {[%emt 0:02:40]} Bg4 {[%emt 0:02:09]} 9. h3 {[%emt 0:02:19]} Bh5 {[%emt 0:00:12]} 10. g4 {[%emt 0:01:10]} Bg6 {[%emt 0:00:12]} 11. Ne2 {[%emt 0:07:45]} Nbd7 {[%emt 0:02:25]} 12. Ng3 {[%emt 0:01:48]} Qc7 {[%emt 0:02:12]} 13. Nf5 {[%emt 0:01:30]} Bxf5 {[%emt 0:05:34]} 14. gxf5 {[%emt 0:02:53]} d5 {[%emt 0:00:55]} 15. exd5 {[%emt 0:02:32]} cxd5 {[%emt 0:00:15]} 16. Bb5 {[%emt 0:02:47]} a6 {[%emt 0:03:06]} 17. Bxd7 {[%emt 0:01:49]} Nxd7 {[%emt 0:00:07]} 18. c3 {[%emt 0:00:07]} Bd6 {[%emt 0:00:53]} 19. Re1 {[%emt 0:00:37]} Rae8 {[%emt 0:01:23]} 20. Bg3 {[%emt 0:00:44]} Nf6 {[%emt 0:02:17]} 21. Qc2 {[%emt 0:04:33]} Nh5 {[%emt 0:05:53]} 22. Bh2 {[%emt 0:04:02]} Nf6 {[%emt 0:09:50]} 23. Rad1 {[%emt 0:01:16]} d4 {[%emt 0:01:19]} 24. c4 {[%emt 0:01:04]} Nd5 {[%emt 0:02:02]} 25. Qb1 {[%emt 0:01:34]} Nb4 {[%emt 0:01:51]} 26. a3 {[%emt 0:04:37]} Nc6 {[%emt 0:00:21]} 27. b4 {[%emt 0:00:22]} b6 {[%emt 0:03:07]} 28. Qc2 {[%emt 0:01:06]} Qd7 {[%emt 0:04:06]} 29. Qa4 {[%emt 0:04:59]} Qb7 {[%emt 0:03:38]} 30. c5 {[%emt 0:05:30]} b5 {[%emt 0:02:15]} 31. Qc2 {[%emt 0:03:00]} 1/2-1/2

[Event "Czech Youth U16 Girls 2024"]
[Site "Kouty nad Desnou"]
[Date "2024.03.13"]
[Round "6.1"]
[White "Dobsa, Emma"]
[Black "Zadrapova, Amalie"]
[Result "1/2-1/2"]
[ECO "B90"]
[WhiteElo "1750"]
[BlackElo "1857"]
[Annotator "NA RC"]
[PlyCount "93"]
[EventDate "2024.03.10"]
[EventType "swiss"]
[EventCountry "CZE"]
[SourceTitle "playchess.com"]
[Source "ChessBase"]
[SourceQuality "1"]
[TimeControl "40/5400+30:1800+30"]

1. e4 {[%emt 0:00:02]} c5 {[%emt 0:00:05]} 2. Nf3 {[%emt 0:00:03]} d6 {[%emt 0:00:07]} 3. d4 {[%emt 0:00:05]} cxd4 {[%emt 0:00:05]} 4. Nxd4 {[%emt 0:00:05]} Nf6 {[%emt 0:00:06]} 5. Nc3 {[%emt 0:00:08]} a6 {[%emt 0:00:06]} 6. f3 {[%emt 0:00:12]} e5 {[%emt 0:00:10]} 7. Nb3 {[%emt 0:00:05]} Be6 {[%emt 0:00:07]} 8. Be3 {[%emt 0:00:25]} h5 {[%emt 0:00:12] setzt sich inzwischen gegen 8...Be7 durch.} 9. Nd5 {[%emt 0:01:07] B90: Sizilianisch (Najdorf-Variante, Abweichungen).} Bxd5 {[%emt 0:00:45]} 10. exd5 {[%emt 0:00:14]} Nbd7 {[%emt 0:00:26]} 11. Be2 {[%emt 0:08:31]} Rc8 {[%emt 0:02:02]} 12. Rc1 {[%emt 0:04:00]} g6 {[%emt 0:01:39]} 13. Qd2 {[%emt 0:08:13]} Bg7 {[%emt 0:02:07]} 14. c4 {[%emt 0:03:35]} O-O {[%emt 0:05:52]} 15. Bg5 $146 {[%emt 0:08:11]} ({Predecessor:} 15. O-O b6 16. Na1 a5 17. Nc2 Nc5 18. Na3 e4 19. Nb5 exf3 20. Bxf3 Ng4 21. Bxg4 hxg4 {½-½ Belozerov,A (2493)-Javakhadze,Z (2454) EU-ch Online 2300+ Final 2020 (3)}) 15... e4 {[%emt 0:08:19]} 16. fxe4 {[%emt 0:11:54]} Qe8 {[%emt 0:03:55]} 17. Bf4 {[%emt 0:08:08]} Nxe4 {[%emt 0:07:53]} 18. Qc2 {[%emt 0:03:25] [#]} Qe7 {[%emt 0:02:41]} (18... Nb6 $1 $17 {[%cal Rb6d5]} 19. Qd3 (19. O-O $2 Nxd5 20. Bd3 Nxf4 $19) 19... Na4 (19... Bxb2 20. Rc2 $17)) 19. O-O {[%emt 0:01:47]} Rfe8 {[%emt 0:05:11]} 20. Bd3 {[%emt 0:04:59]} Ndc5 {[%emt 0:05:16]} 21. Nxc5 {[%emt 0:06:21]} Nxc5 {[%emt 0:02:44]} 22. Bxg6 $2 {[%emt 0:02:25]} fxg6 {[%emt 0:04:16]} 23. Qxg6 {[%emt 0:00:10]} Ne4 $2 {[%emt 0:07:44]} (23... Qe4 $19 24. Qxe4 Nxe4) 24. Bh6 {[%emt 0:08:56]} b5 $2 {[%emt 0:21:31]} (24... Kh8 $1 $11 {und Schwarz ist OK.} 25. Qxh5 Bxh6 (25... Bxb2 $2 {ist das falsche Schlagen.} 26. Rf7 $18) 26. Qxh6+ Qh7 27. Qxh7+ Kxh7 28. Rf7+ Kg6 29. Rxb7 Rb8 30. Rxb8 Rxb8) 25. Rce1 {[%emt 0:05:57]} Qa7+ $1 {[%emt 0:00:37]} (25... bxc4 $2 {too greedy.} 26. Rxe4 (26. Qxh5 $2 {perishes.} Bd4+ 27. Be3 Bxb2 $19) 26... Qa7+ 27. Be3 $18) 26. Be3 {[%emt 0:00:16]} Qd7 {[%emt 0:02:13]} (26... Qe7 $11) 27. Bd4 {[%emt 0:01:59]} (27. Rf4 $1 $14 bxc4 (27... Rxc4 $2 {perishes.} 28. Ref1 $18) 28. Rxe4 Rxe4 29. Qxe4) 27... Qg4 {[%emt 0:03:58]} 28. Qf7+ {[%emt 0:01:32]} Kh8 {[%emt 0:00:21]} 29. Bxg7+ {[%emt 0:01:32]} Qxg7 {[%emt 0:00:10]} 30. Qxh5+ {[%emt 0:01:52]} Kg8 {[%emt 0:00:58]} 31. Qf3 {[%emt 0:05:57]} Nd2 {[%emt 0:09:41]} 32. Qh5 {[%emt 0:00:28]} Rf8 {[%emt 0:01:08]} 33. Rxf8+ {[%emt 0:00:50]} Rxf8 {[%emt 0:00:03]} 34. Re8 {[%emt 0:02:01]} Nf3+ {[%emt 0:02:49]} 35. Kh1 {[%emt 0:00:04]} Ne5 {[%emt 0:00:15]} 36. Rxf8+ {[%emt 0:00:31]} Kxf8 {[%emt 0:00:14]} 37. cxb5 {[%emt 0:00:43]} Qf6 {[%emt 0:02:16]} 38. Qe2 {[%emt 0:00:33]} Qf4 {[%emt 0:00:33]} 39. g3 {[%emt 0:01:23]} Qc1+ {[%emt 0:00:23]} 40. Kg2 {[%emt 0:00:05]} axb5 {[%emt 0:00:15]} 41. b3 {[%emt 0:08:39]} (41. Qf1+ $11 Qxf1+ 42. Kxf1) 41... Ke7 {[%emt 0:04:23]} 42. h4 {[%emt 0:00:58] [#]} Qc5 {[%emt 0:02:25]} ({Black should play} 42... b4 $1 $19 43. Kh2 Qc5) 43. Qd2 {[%emt 0:02:15]} b4 {[%emt 0:01:14]} 44. h5 $17 {[%emt 0:02:17]} Qc3 {[%emt 0:02:48]} 45. Qg5+ {[%emt 0:03:36]} Ke8 {[%emt 0:03:45]} 46. Qg8+ {[%emt 0:01:56]} Kd7 {[%emt 0:00:56]} 47. Qe6+ {[%emt 0:01:58]} 1/2-1/2

[Event "Czech Youth U16 Girls 2024"]
[Site "Kouty nad Desnou"]
[Date "2024.03.13"]
[Round "6.2"]
[White "Cinkova, Vicky"]
[Black "Dominikova, Denisa"]
[Result "1-0"]
[ECO "A22"]
[WhiteElo "1682"]
[BlackElo "1716"]
[Annotator "NA RC"]
[PlyCount "109"]
[EventDate "2024.03.10"]
[EventType "swiss"]
[EventCountry "CZE"]
[SourceTitle "playchess.com"]
[Source "ChessBase"]
[SourceQuality "1"]
[TimeControl "40/5400+30:1800+30"]

1. c4 {[%emt 0:03:26]} e5 {[%emt 0:00:15]} 2. Nc3 {[%emt 0:00:17]} Nf6 {[%emt 0:00:22]} 3. g3 {[%emt 0:00:11]} d5 {[%emt 0:00:17]} 4. cxd5 {[%emt 0:00:11]} Nxd5 {[%emt 0:00:11]} 5. Bg2 {[%emt 0:00:13]} Nb6 {[%emt 0:00:31]} 6. Nf3 {[%emt 0:00:17]} Nc6 {[%emt 0:00:14]} 7. O-O {[%emt 0:00:15]} Be7 {[%emt 0:00:46]} 8. d3 {[%emt 0:00:23]} O-O {[%emt 0:00:49]} 9. Be3 {[%emt 0:00:13]} Be6 {[%emt 0:04:06]} 10. a3 {[%emt 0:01:55]} f6 {[%emt 0:06:13]} 11. b4 {[%emt 0:04:02]} Qd7 {[%emt 0:10:42]} 12. Ne4 {[%emt 0:04:34]} Nd4 {[%emt 0:10:46]} 13. Nxd4 {[%emt 0:12:50]} exd4 {[%emt 0:01:01]} 14. Bd2 {[%emt 0:03:06]} Bd5 {[%emt 0:08:18]} 15. Qc2 {[%emt 0:09:16]} f5 {[%emt 0:11:31]} 16. Nc5 {[%emt 0:13:14]} Bxc5 {[%emt 0:03:36]} 17. bxc5 {[%emt 0:00:07]} Bxg2 {[%emt 0:01:53]} 18. Kxg2 {[%emt 0:00:08]} Qc6+ {[%emt 0:05:23]} 19. Kg1 {[%emt 0:01:10]} Rae8 {[%emt 0:05:20]} 20. Rfe1 {[%emt 0:04:37]} Re6 {[%emt 0:05:29]} 21. Qb2 {[%emt 0:01:28]} Nd7 {[%emt 0:03:44]} 22. Qxd4 {[%emt 0:01:29]} Rfe8 {[%emt 0:02:51]} 23. Be3 {[%emt 0:02:16]} Nf6 {[%emt 0:04:27]} 24. Ra2 {[%emt 0:13:31]} Ng4 {[%emt 0:02:38]} 25. Bf4 {[%emt 0:02:08]} Ne5 {[%emt 0:02:09]} 26. Bxe5 {[%emt 0:01:10]} Rxe5 {[%emt 0:00:08]} 27. Rc2 {[%emt 0:02:42]} Qh6 {[%emt 0:02:32]} 28. f4 {[%emt 0:02:38]} R5e6 {[%emt 0:02:56]} 29. Qd5 {[%emt 0:00:39]} Qh5 {[%emt 0:01:02]} 30. e4 {[%emt 0:01:17]} c6 {[%emt 0:00:45]} 31. Qb3 {[%emt 0:02:27]} Kh8 {[%emt 0:00:48]} 32. e5 {[%emt 0:00:12]} R8e7 {[%emt 0:02:04]} 33. d4 {[%emt 0:00:46]} g5 {[%emt 0:01:10]} 34. Qe3 {[%emt 0:01:00]} Rg7 {[%emt 0:01:25]} 35. Rg2 {[%emt 0:01:22]} Qh6 {[%emt 0:00:57]} 36. Rf1 {[%emt 0:00:30]} Qh5 {[%emt 0:00:32]} 37. Qf3 {[%emt 0:00:58]} Qh6 {[%emt 0:00:34]} 38. Rgf2 {[%emt 0:02:37]} Qh3 {[%emt 0:00:28]} 39. Qg2 {[%emt 0:01:32]} Qh5 {[%emt 0:00:21]} 40. Rf3 {[%emt 0:00:51]} Rgg6 {[%emt 0:00:37]} 41. Qf2 {[%emt 0:30:38]} g4 {[%emt 0:02:26]} 42. Rb3 {[%emt 0:00:00]} Rg7 {[%emt 0:00:57]} 43. Rfb1 {[%emt 0:00:00]} Ree7 {[%emt 0:02:33]} 44. Qc2 {[%emt 0:00:00]} Qf7 {[%emt 0:01:22]} 45. Rb4 {[%emt 0:00:00]} Qd5 {[%emt 0:01:54]} 46. Qxf5 {[%emt 0:00:00]} Ref7 {[%emt 0:03:50]} 47. Qd3 {[%emt 0:00:00]} Qe6 {[%emt 0:05:44]} 48. R4b2 {[%emt 0:00:00]} h5 {[%emt 0:01:00]} 49. Rf2 {[%emt 0:00:00]} h4 {[%emt 0:06:11]} 50. f5 {[%emt 0:00:00]} Qh6 {[%emt 0:01:04]} 51. Rbf1 {[%emt 0:00:00]} Rh7 {[%emt 0:01:04]} 52. f6 {[%emt 0:00:13]} hxg3 {[%emt 0:01:46]} 53. Qxg3 {[%emt 0:00:07]} Qg6 {[%emt 0:02:07]} 54. Rg2 {[%emt 0:00:59]} Rh5 {[%emt 0:02:28]} 55. Qxg4 {[%emt 0:01:38]} 1-0